[Event "44th Chess Olympiad Open 2022"]
[Site "Chennai"]
[Date "2022.08.06"]
[Round "8.21"]
[White "Valderrama Quiceno, Esteban Alb"]
[Black "Postny, Evgeny"]
[Result "1/2-1/2"]
[WhiteElo "2436"]
[BlackElo "2564"]
[Annotator "TA"]
[PlyCount "179"]
[EventDate "2022.??.??"]
[TimeControl "60"]

{[%evp 10,179,17,16,13,14,20,19,40,41,39,34,45,37,44,35,26,35,38,38,55,43,45,
37,16,-8,16,-22,-6,-112,0,0,0,0,-4,-24,0,0,0,0,0,0,9,21,10,0,18,14,22,10,20,0,
0,0,0,0,0,0,0,0,0,-20,0,0,62,12,12,16,20,0,0,0,0,0,0,0,0,0,0,0,0,0,0,0,0,0,0,
-52,-35,-41,0,0,0,0,0,0,20,-6,0,0,4,0,0,0,0,-1,6,6,14,20,84,0,25,24,25,25,27,8,
38,30,14,0,48,0,43,44,37,0,0,-16,-16,-16,-16,-16,-16,-16,-16,-16,-16,-16,-16,
-16,-16,-16,-16,-16,-16,-16,-16,-16,-16,-16,-16,-16,-16,-16,-16,-16,-16,-16,
-16,-16,-16,-16,-16,-16,0,-16,0,-16,0,-16]} 1. Nf3 {[%emt 0:00:24] ChessBase II
} d5 {[%emt 0:00:08]} 2. g3 {[%emt 0:00:51]} b6 {[%emt 0:00:11]} 3. Bg2 {
[%emt 0:00:41]} Bb7 {[%emt 0:00:06]} 4. O-O {[%emt 0:00:37]} e6 {[%emt 0:01:01]
} 5. d4 {[%emt 0:03:43][%cal Yd2d4,Yd4e5]} Nf6 {[%emt 0:00:38]} 6. Ne5 {
[%emt 0:04:55]} Nbd7 {[%emt 0:02:45] 6...Qc8 injects fresh life into this line.
D02:1 d4 d5 2 Nf3 sidelines, including 2...Nf6 3 g3 and 2...Nf6 3 Bf4.} 7. c4 {
[%emt 0:00:34]} c6 {[%emt 0:01:05]} 8. Nc3 {[%emt 0:00:31]} Nxe5 {[%emt 0:19:
06]} 9. dxe5 {[%emt 0:01:28]} Nd7 {[%emt 0:00:05]} 10. cxd5 {[%emt 0:02:43]}
exd5 {[%emt 0:05:16]} 11. e4 {[%emt 0:03:58][%cal Re4d5] [#]} d4 $146 {[%emt 0:
00:26]} ({Predecessor:} 11... dxe4 12. Nxe4 Nxe5 13. Qh5 Ng6 14. Bg5 Be7 15.
Rad1 Qc7 16. Bxe7 Qxe7 17. Rfe1 Kf8 18. Nd6 Qc7 19. Bf1 Kg8 20. Bc4 Rf8 21.
Nxf7 {1-0 (21) Langeweg,K-Hamann,S Marianske Lazne 1962 EXT 2000 [ChessBase II]
}) 12. Qxd4 {[%emt 0:06:45][%cal Ye5e6]} Bc5 {[%emt 0:00:06]} 13. Qa4 {[%emt 0:
00:45]} Nxe5 {[%emt 0:00:51]} 14. Bf4 {[%emt 0:01:03]} Qb8 {[%emt 0:04:33]} 15.
Rad1 {[%emt 0:07:43]} O-O {[%emt 0:05:42]} 16. Kh1 {[%emt 0:00:36]} f6 {
[%emt 0:20:54]} 17. Ne2 {[%emt 0:10:58]} Qe8 {[%emt 0:00:00]} 18. h3 {[%emt 0:
11:01]} a5 {[%emt 0:03:48]} 19. Nd4 {[%emt 0:02:12]} (19. Be3 $1 $11) 19...
Bxd4 {[%emt 0:07:31]} (19... Ba6 $17 {aiming for ...Kh8.} 20. Rg1 Nd3) 20. Qxd4
$11 {[%emt 0:06:07]} c5 {[%emt 0:00:08]} 21. Qc3 {[%emt 0:00:00]} Qe6 {[%emt 0:
01:34][%cal Yb7e4]} 22. Rd2 {[%emt 0:02:46]} Rad8 {[%emt 0:00:00]} 23. Rfd1 {
[%emt 0:01:33]} Rxd2 {[%emt 0:04:35]} 24. Rxd2 {[%emt 0:00:00]} Nc4 {[%emt 0:
00:24]} 25. Rc2 {[%emt 0:08:30]} Nd6 {[%emt 0:03:55]} 26. Bxd6 {[%emt 0:05:22]}
Qxd6 {[%emt 0:00:04]} 27. Rd2 {[%emt 0:01:31]} Qe6 {[%emt 0:00:05][%csl Ya2,
Ye4]} 28. Kh2 {[%emt 0:00:06]} Re8 {[%emt 0:01:45]} (28... Qxa2 $2 29. b3 Qb1
30. Qc4+ Kh8 31. Qf7 $3 $18) (28... Bxe4 $2 29. Re2 $18) 29. f3 {[%emt 0:01:08]
} Ba6 {[%emt 0:01:31]} (29... Qxa2 $2 30. b3 Qa3 31. Qc4+ Kf8 32. Rd7 $18) 30.
a3 {[%emt 0:00:34]} a4 {[%emt 0:03:53]} 31. h4 {[%emt 0:00:33]} Qb3 {[%emt 0:
02:07]} 32. Qc1 {[%emt 0:07:14]} Bd3 {[%emt 0:00:37]} 33. Qe1 {[%emt 0:02:10]}
c4 {[%emt 0:00:31]} 34. Qe3 {[%emt 0:00:00]} Qb5 {[%emt 0:00:48]} 35. Qd4 {
[%emt 0:00:30]} Qc6 {[%emt 0:00:34]} (35... Kf7 {is more complex.} 36. Qd6 Re7
37. Bh3 Qc5) 36. Bh3 {[%emt 0:01:21]} Qc7 {[%emt 0:00:30]} (36... Re7 $11) 37.
Qd5+ {[%emt 0:04:10]} ({Better is} 37. Qd7 $14 Qxd7 38. Bxd7) 37... Kf8 $1 {
[%emt 0:00:07]} 38. Qb5 {[%emt 0:01:08]} Ra8 {[%emt 0:01:08]} 39. Qf5 {[%emt 0:
00:50]} h6 {[%emt 0:00:06]} 40. Qh7 {[%emt 0:00:34]} Qf7 {[%emt 0:00:34]} 41.
Qf5 {[%emt 0:30:35]} Qe8 {[%emt 0:00:00]} 42. Qd5 {[%emt 0:00:00]} Rd8 {
[%emt 0:03:24] Against Bd7} 43. Qf5 {[%emt 0:00:00]} Rd6 {[%emt 0:10:41][%cal
Yd3e4]} 44. Qh7 {[%emt 0:00:00]} Rd8 {[%emt 0:04:03]} 45. Bf5 {[%emt 0:00:00]}
Qf7 {[%emt 0:01:22]} 46. Bg4 {[%emt 0:00:00]} b5 {[%emt 0:06:59]} 47. Qf5 {
[%emt 0:00:00]} Qe8 {[%emt 0:00:09]} 48. Bh5 {[%emt 0:02:39]} (48. Qh7 $11 Qf7
49. Qf5) 48... Qe5 $1 $15 {[%emt 0:00:33]} 49. Qg6 {[%emt 0:00:37][%csl Gh5]
[%cal Rg6f7]} Kg8 {[%emt 0:00:58]} (49... Rd7 $5 {[%cal Rd3e4]} 50. Rf2 Re7 $11
) 50. Qf7+ {[%emt 0:00:09]} Kh8 {[%emt 0:00:00]} 51. Bg6 {[%emt 0:00:10][%cal
Yh5g6,Yg6f5,Yf5d7]} Qc5 {[%emt 0:00:00] Strongly threatening ...Qe3.} 52. Bf5 {
[%emt 0:01:37]} Qf8 {[%emt 0:00:00]} ({Don't take} 52... Qe3 53. Rg2 Qb6 54.
Qg6 $16) 53. Qc7 {[%emt 0:00:26]} Qe8 {[%emt 0:01:10]} 54. Kg1 {[%emt 0:00:49]}
Rb8 {[%emt 0:00:38]} 55. Bd7 {[%emt 0:00:39]} Qe5 {[%emt 0:00:18]} 56. Qxe5 {
[%emt 0:00:27]} fxe5 $11 {[%emt 0:00:04] Endgame KRB-KRB} 57. Kf2 {[%emt 0:00:
20][%cal Yg1f2,Yf2e3,Ye3d4]} Kg8 {[%emt 0:00:35]} 58. Ke3 {[%emt 0:00:22]} Kf7
{[%emt 0:00:14]} 59. f4 {[%emt 0:00:07]} Ke7 {[%emt 0:00:21] [#]} (59... Kf6
$11 {remains equal.}) 60. Bg4 {[%emt 0:00:27]} (60. Bc6 $1 $16) 60... exf4+ {
[%emt 0:01:38]} 61. gxf4 {[%emt 0:00:05]} b4 {[%emt 0:00:28]} 62. axb4 {
[%emt 0:00:08]} Rxb4 {[%emt 0:00:05]} 63. Kd4 {[%emt 0:01:10]} Rb8 {[%emt 0:00:
00]} 64. h5 {[%emt 0:01:05]} Rd8+ {[%emt 0:00:19]} 65. Ke3 {[%emt 0:00:29]} Ra8
{[%emt 0:00:29]} (65... Bb1 $11 {might be stronger.} 66. Rxd8 Kxd8) 66. Bf5 {
[%emt 0:00:29]} (66. Rg2 $14) 66... a3 {[%emt 0:00:43]} (66... c3 $5 67. bxc3 (
67. Rxd3 cxb2 68. Rd7+ Ke8 $15) 67... Bc4 $11) 67. bxa3 {[%emt 0:00:04]} Rxa3 {
[%emt 0:00:03][%cal Yc4c3]} 68. Kd4 {[%emt 0:00:09]} (68. Rb2 $5 {[%cal Rb2b7]}
) 68... c3 $1 {[%emt 0:01:10] The position is equal.} 69. Rg2 {[%emt 0:00:23] 
[#]} Kf8 $1 {[%emt 0:00:48] ...c2 is the strong threat.} 70. Kxd3 {[%emt 0:00:
00] KRB-KR} (70. Rg6 c2) 70... c2+ $1 {[%emt 0:00:05]} 71. Kd2 {[%emt 0:00:01]}
Ra1 {[%emt 0:00:05]} 72. Kxc2 {[%emt 0:00:45]} Ra2+ {[%emt 0:00:04]} 73. Kd3 {
[%emt 0:00:03]} Rxg2 {[%emt 0:00:03] KR-KB} 74. Ke3 {[%emt 0:00:18]} Rg3+ {
[%emt 0:00:49]} 75. Kf2 {[%emt 0:01:00]} Ra3 {[%emt 0:00:08]} 76. e5 {[%emt 0:
00:00]} Ke7 {[%emt 0:00:08]} 77. Bg4 {[%emt 0:00:14]} Kd8 {[%emt 0:00:22]} 78.
Bf3 {[%emt 0:00:20]} Kd7 {[%emt 0:00:31]} 79. Kg3 {[%emt 0:00:55]} Ke6 {
[%emt 0:00:09] White must now prevent ...Kf5.} 80. Kg4 {[%emt 0:00:03]} Ra1 {
[%emt 0:00:08] Threatens to win with ...Rg1+.} 81. Bg2 {[%emt 0:00:06]} Rg1 {
[%emt 0:00:25]} 82. Kf3 {[%emt 0:00:06]} Ke7 {[%emt 0:00:34]} 83. Kf2 {[%emt 0:
00:00]} Rc1 {[%emt 0:00:12]} 84. Bh3 {[%emt 0:00:22]} Rc3 {[%emt 0:00:11]} 85.
Bg4 {[%emt 0:00:09]} Ra3 {[%emt 0:00:33]} 86. Kg2 {[%emt 0:00:06]} Kd8 {
[%emt 0:00:39]} 87. Bf3 {[%emt 0:00:06]} Kd7 {[%emt 0:00:15]} 88. Kg3 {[%emt 0:
00:00]} Ke6 {[%emt 0:00:06]} 89. Kg4 {[%emt 0:00:00]} Ra1 {[%emt 0:00:27] And
now ...Rg1+ would win.} 90. Bg2 {[%emt 0:03:25] Weighted Error Value: White=0.
12 (very precise) /Black=0.11 (very precise)} 1/2-1/2

[Event "44th Chess Olympiad Open 2022"]
[Site "Chennai"]
[Date "2022.08.06"]
[Round "8.22"]
[White "Andersen, Mads"]
[Black "Ashiku, Franc"]
[Result "1-0"]
[WhiteElo "2587"]
[BlackElo "2422"]
[Annotator "TA"]
[PlyCount "87"]
[EventDate "2022.??.??"]
[TimeControl "60"]

{[%evp 20,87,33,25,26,27,35,50,58,54,60,52,56,62,69,43,52,63,133,118,183,139,
114,131,247,229,305,285,227,109,322,290,390,404,688,607,578,231,270,283,283,
282,278,289,278,266,284,284,269,282,270,234,230,240,309,273,277,234,208,160,
141,142,813,794,1004,968,892,778,29990,29990]} 1. d4 {[%emt 0:00:09]} Nf6 {
[%emt 0:00:08]} 2. c4 {[%emt 0:00:10]} g6 {[%emt 0:00:04]} 3. Nc3 {[%emt 0:00:
00]} Bg7 {[%emt 0:00:05]} 4. e4 {[%emt 0:00:09]} d6 {[%emt 0:00:04]} 5. Nf3 {
[%emt 0:00:08]} O-O {[%emt 0:00:09]} 6. Be2 {[%emt 0:00:08]} e5 {[%emt 0:00:08]
} 7. O-O {[%emt 0:00:16]} exd4 {[%emt 0:00:06]} 8. Nxd4 {[%emt 0:00:49]} Re8 {
[%emt 0:01:02]} 9. f3 {[%emt 0:00:00]} c6 {[%emt 0:00:13]} 10. Nc2 {[%emt 0:00:
00]} Na6 {[%emt 0:00:59]} 11. Kh1 {[%emt 0:02:21]} Nc7 {[%emt 0:00:55] E94:
King's Indian: Classical: 6 Be2 e5 7 0-0: Various Black 7th moves.} 12. Bg5 {
[%emt 0:03:05]} h6 {[%emt 0:07:45]} 13. Bh4 {[%emt 0:11:37]} d5 {[%emt 0:00:00]
White is slightly better.} 14. cxd5 {[%emt 0:02:01]} cxd5 {[%emt 0:00:00]} 15.
Qe1 $1 {[%emt 0:05:43]} g5 {[%emt 0:06:22]} 16. Bg3 {[%emt 0:00:00]} Nh5 {
[%emt 0:03:12]} 17. Rd1 $1 {[%emt 0:01:56]} Nxg3+ {[%emt 0:05:53]} 18. Qxg3 {
[%emt 0:10:42] [#]} d4 $146 {[%emt 0:15:20]} (18... Qe7 $14) ({Predecessor:} 
18... Qe7 19. f4 gxf4 20. Rxf4 Be6 21. Ne3 d4 22. Ng4 dxc3 23. Nxh6+ Kh7 24.
Nf5 Bxf5 25. Rxf5 cxb2 26. Rb1 Ne6 27. Rxb2 Rac8 28. Rd2 Nc5 {0-1 (28)
Koegeler,A (2133)-Alejos,P (2171) ICCF email 2017}) 19. f4 $1 $16 {[%emt 0:00:
00][%cal Yf3f4,Yf4f5]} Ne6 {[%emt 0:10:29]} (19... gxf4 $16 20. Qxf4 (20. Rxf4
Qg5 $11) 20... Ne6 21. Qxf7+ Kh8) 20. f5 $1 $18 {[%emt 0:15:42]} Nc5 {[%emt 0:
11:32]} 21. Qf3 {[%emt 0:00:00] White is more active.} Qe7 {[%emt 0:00:00]} (
21... g4 $16 22. Qxg4 Qg5 23. Nxd4 Qxg4 24. Bxg4 Nxe4) 22. Nxd4 {[%emt 0:00:00]
} Nxe4 {[%emt 0:00:41]} 23. Nd5 {[%emt 0:01:48]} Qe5 {[%emt 0:03:24] [#]} 24.
Nb5 {[%emt 0:05:30] Pair of Knights!} (24. Bc4 $1 $18 {and White stays clearly
on top.}) 24... Rd8 $2 {[%emt 0:01:59]} (24... Qxb2 $2 25. Nbc7 Bd7 26. f6 (26.
Nxa8 Nd2 $18) 26... Nxf6 27. Nxf6+ Qxf6 28. Qxf6 Bxf6 29. Rxd7 $18) (24... Bd7
$16) 25. Nbc7 {[%emt 0:06:10] Threatens to win with f6.} Rb8 {[%emt 0:16:14]}
26. f6 {[%emt 0:00:48] Black must now prevent Ne7+.} Be6 {[%emt 0:01:13]} (
26... Bg4 $142 27. Qxg4 Nxf6) 27. Nxe6 {[%emt 0:03:31]} Qxe6 {[%emt 0:01:11]}
28. Bc4 {[%emt 0:02:55]} (28. Ne7+ Kh7 29. Bd3 Rxd3 30. Qxd3 Bxf6 31. Rde1 (31.
Rxf6 Qxe7 32. Rf5 Qe6 $18)) 28... Nxf6 {[%emt 0:00:13]} 29. Rde1 {[%emt 0:00:
37]} ({Not} 29. Nxf6+ Qxf6 30. Rxd8+ (30. Qxf6 Bxf6 31. Rxd8+ Bxd8 $14) (30.
Bxf7+ Kh8 $11) 30... Qxd8 $14) 29... Nxd5 {[%emt 0:01:44][%cal Yf6d5,Yd5f4,
Yf4e2]} 30. Rxe6 {[%emt 0:00:02]} fxe6 {[%emt 0:00:05] [#]} 31. Qf7+ {[%emt 0:
01:12]} Kh8 {[%emt 0:00:04] And now ...Ne3 would win.} 32. Qxe6 {[%emt 0:00:16]
} Nf4 {[%emt 0:00:23]} 33. Qe3 {[%emt 0:00:41]} Rbc8 {[%emt 0:00:30]} 34. Bb3 {
[%emt 0:00:34]} b6 {[%emt 0:00:43]} 35. g3 {[%emt 0:00:00]} Re8 {[%emt 0:00:56]
} 36. Qf3 {[%emt 0:00:39]} Ne2 {[%emt 0:00:24]} 37. Bf7 {[%emt 0:00:56]} Nd4 {
[%emt 0:00:09]} 38. Qg4 {[%emt 0:00:27]} Rf8 {[%emt 0:01:08]} 39. h4 {[%emt 0:
00:33]} Rc7 {[%emt 0:00:17]} 40. Qh5 {[%emt 0:00:00][%cal Yf1f6] Rf6! is the
strong threat.} ({Much worse is} 40. hxg5 $6 Rfxf7 41. Rxf7 Rxf7 $11) 40... Ne6
$2 {[%emt 0:00:35] [#] This costs Black the game.} (40... Rc5 $16) 41. Rf6 $3 {
[%emt 0:08:58]} Rc1+ {[%emt 0:13:55]} (41... Rcxf7 42. Rxf7) 42. Kh2 {[%emt 0:
00:00]} Rxf7 {[%emt 0:06:11]} 43. Qxf7 {[%emt 0:05:03]} Nc5 {[%emt 0:03:21]}
44. Rg6 {[%emt 0:00:00] Weighted Error Value: White=0.21 (precise) /Black=0.75}
1-0

[Event "44th Chess Olympiad Open 2022"]
[Site "Chennai"]
[Date "2022.08.06"]
[Round "8.22"]
[White "Rasmussen, Allan Stig"]
[Black "Veleshnja, Zino"]
[Result "1-0"]
[WhiteElo "2550"]
[BlackElo "2263"]
[Annotator "TA"]
[PlyCount "35"]
[EventDate "2022.??.??"]
[TimeControl "60"]

{[%evp 13,35,22,35,27,46,30,35,39,30,25,42,32,36,25,73,54,172,158,402,403,414,
414,769,775]} 1. d4 {[%emt 0:00:04]} Nf6 {[%emt 0:00:21]} 2. g3 {[%emt 0:00:19]
} e6 {[%emt 0:01:34]} 3. Bg2 {[%emt 0:01:29]} d5 {[%emt 0:00:49]} 4. Nf3 {
[%emt 0:00:22]} c5 {[%emt 0:06:55]} 5. c4 {[%emt 0:01:24]} Be7 {[%emt 0:03:47]}
6. O-O {[%emt 0:09:25]} O-O {[%emt 0:04:21]} 7. dxc5 {[%emt 0:03:16]} Bxc5 {
[%emt 0:05:05]} 8. Nc3 {[%emt 0:07:18] E06: Closed Catalan: Early deviations.}
dxc4 {[%emt 0:06:02]} 9. Qa4 $1 {[%emt 0:02:09] 9.Qa4 scores better than 9.Ne5.
} Nc6 {[%emt 0:04:00]} 10. Qxc4 {[%emt 0:01:01] White is slightly better.} Be7
{[%emt 0:00:58]} 11. Rd1 {[%emt 0:06:05]} Qa5 {[%emt 0:01:58]} 12. a3 {[%emt 0:
00:00]} e5 {[%emt 0:08:03]} 13. Ng5 {[%emt 0:21:48] [#] Against Be6} Qc5 $146 {
[%emt 0:10:24]} (13... Bf5 $11 {should be considered.}) ({Predecessor:} 13...
h6 14. Nge4 Nxe4 15. Bxe4 Be6 16. Bd5 Nd4 17. Bxe6 fxe6 18. Be3 Rac8 19. Qd3 {
1-0 (19) Kukula,P (2058)-Zivotic,A (1422) FICGS email 2012}) 14. Qd3 $16 {
[%emt 0:03:52] And now Be3 would win. 0x0.0024cc815f95dp-1022s more active
pieces. The black rooks are badly placed.} Nd4 {[%emt 0:08:22] [#]} ({Better is
} 14... Qd4 $14) 15. e3 $1 $40 {[%emt 0:01:57] White has strong attack.} Ne6 {
[%emt 0:01:06]} (15... Nc6 $16 {keeps fighting.}) 16. b4 {[%emt 0:01:16]} Qc7 {
[%emt 0:13:33]} 17. Nd5 {[%emt 0:01:22] White wants to mate with Nxf6+.} Rd8 {
[%emt 0:00:39]} (17... e4 $142) 18. Nxe6 {[%emt 0:01:23] Weighted Error Value:
White=0.02 (flawless) /Black=0.46} 1-0

[Event "44th Chess Olympiad Open 2022"]
[Site "Chennai"]
[Date "2022.08.06"]
[Round "8.22"]
[White "Pasko, Llambi"]
[Black "Bjerre, Jonas Buhl"]
[Result "0-1"]
[WhiteElo "2418"]
[BlackElo "2608"]
[Annotator "TA"]
[PlyCount "68"]
[EventDate "2022.??.??"]
[TimeControl "60"]

{[%evp 23,68,17,24,2,63,0,30,27,40,49,46,35,29,-30,0,-16,52,62,57,57,33,61,27,
-45,-67,-81,0,0,0,-78,-58,-58,-75,-149,-147,-183,-179,-181,-175,-170,-156,-412,
-327,-337,-309,-333,-326]} 1. d4 {[%emt 0:00:02]} Nf6 {[%emt 0:00:09]} 2. c4 {
[%emt 0:00:09]} e6 {[%emt 0:00:13]} 3. Nf3 {[%emt 0:00:10]} c5 {[%emt 0:00:42]}
4. d5 {[%emt 0:00:28]} exd5 {[%emt 0:00:14]} 5. cxd5 {[%emt 0:00:07]} d6 {
[%emt 0:00:11]} 6. Nc3 {[%emt 0:00:53]} g6 {[%emt 0:00:08]} 7. e4 {[%emt 0:00:
00]} Bg7 {[%emt 0:00:25]} 8. Nd2 {[%emt 0:00:31]} O-O {[%emt 0:00:23]} 9. Be2 {
[%emt 0:00:13]} Re8 {[%emt 0:00:47]} 10. O-O {[%emt 0:00:07]} Nbd7 {[%emt 0:00:
00]} 11. Re1 {[%emt 0:02:11]} a6 {[%emt 0:03:43]} 12. a4 {[%emt 0:00:17]} Ne5 {
[%emt 0:03:47]} 13. Nf1 {[%emt 0:12:54] A77: Modern Benoni: Classical: 9...Re8
10 Nd2:10...a6 and 10...Nbd7.} Rb8 {[%emt 0:05:28]} ({Black should try} 13...
Nfg4 $1 $11) 14. Ne3 {[%emt 0:03:57] [#]} (14. a5 $14) 14... h5 $146 {[%emt 0:
00:00]} (14... Ned7 $5 {[%cal Rf6e4]}) ({Predecessor:} 14... Qc7 15. Bd2 h5 16.
h3 Bh6 17. Rc1 Qe7 18. Qc2 Kh7 19. Rf1 Bf4 20. Nf5 Bxf5 21. Bxf4 {1-0 (36)
Xiong,J (2684)-Vasli,A (2341) Chess.com INT 2019}) 15. h3 {[%emt 0:04:44]
White has an edge.} Nh7 {[%emt 0:09:05]} 16. f4 {[%emt 0:06:14]} Nd7 {[%emt 0:
00:00]} 17. Bd3 {[%emt 0:08:40]} Qh4 {[%emt 0:10:17]} 18. Nc4 {[%emt 0:02:55]}
(18. Rf1 $142 $1) 18... Bd4+ {[%emt 0:02:47]} 19. Be3 $1 {[%emt 0:00:07]} (19.
Kh1 Nb6 $1 20. Re2 (20. Nxb6 $2 Bxh3 21. Be3 Bg4+ 22. Kg1 Bxd1 $19) 20... Nxc4
21. Bxc4 Nf6 $17) 19... Bxe3+ {[%emt 0:17:26]} (19... b5 $11 20. axb5 (20. Nxd6
$2 Bxe3+ 21. Rxe3 Qxf4 $19) 20... axb5 21. Nxb5 (21. Nxd6 Bxe3+ 22. Rxe3 Qxf4
$15) 21... Rxb5) 20. Rxe3 $14 {[%emt 0:00:19] Qf1 is the strong threat.} b5 {
[%emt 0:01:10]} 21. axb5 {[%emt 0:02:27]} (21. Nxd6 $2 Qxf4 22. Qe2 (22. Nxe8
$2 Qxe3+ 23. Kh1 Ne5 $19) 22... Qxd6 $19) (21. g3 $5 {[%cal Rg3h4]} Qf6 22.
axb5 axb5 23. Na5 $16) 21... axb5 {[%emt 0:01:48]} 22. g3 {[%emt 0:00:29]} (22.
Nxd6 Qxf4 23. Nxe8 Qxe3+ 24. Kh1 b4 $17) 22... Qf6 {[%emt 0:01:22]} 23. e5 {
[%emt 0:11:18]} (23. Na5 $11 b4 24. Nb5) 23... dxe5 $15 {[%emt 0:02:45]} 24.
Ne4 {[%emt 0:02:38]} Qh8 {[%emt 0:05:26]} (24... Qd8 $17 25. Ncd6 Rf8 26. Nxc8
(26. Bxb5 exf4 27. gxf4 Ndf6 $15) 26... Qxc8) 25. Ncd6 $11 {[%emt 0:05:39]
[%csl Yb5,Ye8]} exf4 {[%emt 0:01:28]} 26. Qf1 {[%emt 0:03:40]} Qd4 {[%emt 0:00:
00]} ({Don't play} 26... f5 27. Qxf4 $1 Rd8 28. Nc3 $16) 27. Qxf4 {[%emt 0:00:
00]} Rf8 {[%emt 0:00:45]} 28. Rd1 {[%emt 0:08:53] [#]} ({White should play} 28.
Bf1) 28... Nb6 $1 $17 {[%emt 0:01:46]} 29. Nxc5 {[%emt 0:17:00]} Qxc5 {[%emt 0:
01:36]} 30. Ne4 {[%emt 0:00:04]} Qd4 {[%emt 0:06:38]} 31. Be2 {[%emt 0:00:00]}
g5 $1 {[%emt 0:01:19]} 32. Qf3 $2 {[%emt 0:05:09]} (32. Rxd4 $17 gxf4 33. gxf4)
32... Qg7 {[%emt 0:00:49]} 33. Bxb5 {[%emt 0:00:27]} Bxh3 {[%emt 0:00:00]
Hoping for ...Bg4.} 34. Qxh5 {[%emt 0:00:13]} Bf5 {[%emt 0:00:05] Weighted
Error Value: White=0.38/Black=0.23 (precise)} ({Don't blunder} 34... Qxb2 $2
35. Qxh3 Qxb5 36. Qf5 $19) ({Inferior is} 34... Nxd5 35. Rxd5 Be6 36. Rc5 $15)
0-1

[Event "44th Chess Olympiad Open 2022"]
[Site "Chennai"]
[Date "2022.08.06"]
[Round "8.22"]
[White "Mehmeti, Dritan"]
[Black "Thybo, Jesper Sondergaard"]
[Result "1/2-1/2"]
[WhiteElo "2371"]
[BlackElo "2520"]
[Annotator "TA"]
[PlyCount "47"]
[EventDate "2022.??.??"]
[TimeControl "60"]

{[%evp 13,47,-1,0,-4,0,-12,0,-3,8,4,4,9,3,6,7,3,50,0,0,0,0,0,0,0,37,0,50,11,48,
10,9,0,74,0,0,0]} 1. d4 {[%emt 0:00:05]} d5 {[%emt 0:00:29]} 2. Nf3 {[%emt 0:
00:00]} Nf6 {[%emt 0:00:22]} 3. e3 {[%emt 0:00:22]} e6 {[%emt 0:01:15]} 4. c4 {
[%emt 0:00:45]} c5 {[%emt 0:02:51]} 5. Nc3 {[%emt 0:00:13]} a6 {[%emt 0:00:07]}
6. a3 {[%emt 0:05:53]} dxc4 {[%emt 0:03:40]} 7. Bxc4 {[%emt 0:03:51]} b5 {
[%emt 0:00:10]} 8. Be2 {[%emt 0:00:31] D40: Queen's Gambit Declined:
Semi-Tarrasch with 5 e3.} Bb7 {[%emt 0:01:03]} 9. O-O {[%emt 0:01:07]} Nbd7 {
[%emt 0:03:53][%cal Yb8d7,Yd7c5,Yc5b3,Yb3c1]} 10. dxc5 {[%emt 0:04:37]} Nxc5 {
[%emt 0:08:37]} 11. b4 {[%emt 0:01:48]} Qxd1 {[%emt 0:02:34]} 12. Rxd1 {
[%emt 0:00:45]} Nb3 {[%emt 0:00:35]} 13. Rb1 {[%emt 0:02:15]} Nxc1 {[%emt 0:00:
00]} 14. Rbxc1 {[%emt 0:00:08][%cal Yc3b5] [#] And now Nxb5! would win.} Rc8 {
[%emt 0:11:50]} (14... Be7 $11) 15. Nxb5 {[%emt 0:13:04] [#]} axb5 $146 {
[%emt 0:04:23]} ({Predecessor:} 15... Rxc1 16. Rxc1 axb5 17. Bxb5+ Kd8 18. Ne5
Bd6 19. Nxf7+ Ke7 20. Nxh8 Ng4 21. g3 Ne5 {1-0 (30) Grochal,J (2335)-Terry,R 
(2504) Chess.com INT 2020}) 16. Bxb5+ {[%emt 0:01:25]} Ke7 {[%emt 0:00:47]} 17.
Rxc8 {[%emt 0:00:42]} Bxc8 {[%emt 0:00:47]} 18. Ne5 $1 {[%emt 0:00:18] Nc6+
would kill now.} Ne8 {[%emt 0:06:05][%cal Ye7f6]} 19. e4 {[%emt 0:05:01] Black
must now prevent Nc6+. White has compensation.} f6 {[%emt 0:12:48]} (19... Kf6
$1 $11) 20. Nc6+ $14 {[%emt 0:03:14]} Kf7 {[%emt 0:00:19]} 21. Nd8+ {[%emt 0:
14:23]} (21. Rd8 $5 {[%cal Rd8c8]} Nd6 22. Bd3 $14 (22. a4 Rg8 $14)) 21... Ke7
{[%emt 0:00:10]} 22. Nc6+ {[%emt 0:07:16]} (22. a4 $11) 22... Kf7 $16 {[%emt 0:
00:13] [#]} 23. Nd8+ {[%emt 0:10:39]} ({Better is} 23. Rd8 $1 $16 {[%cal Rd8c8]
} Nd6 24. Bd3 (24. a4 Rg8 $14)) 23... Ke7 $11 {[%emt 0:00:37]} 24. Nc6+ {
[%emt 0:00:16] Weighted Error Value: White=0.16 (very precise) /Black=0.16 
(very precise)} 1/2-1/2